fUSD/lending_fUSD_20250505
["ID","MTS","AMOUNT","RATE_DAILY","PERIOD"]
[359963083,1746451847729,-450.0,0.00019899,2]
[359963084,1746451847738,-450.0,0.00019899,2]
[359963085,1746451847747,-462.20981104,0.00019899,2]
[359963086,1746451847756,-450.0,0.00019899,2]
[359963087,1746451847766,-450.0,0.00019899,2]
[359963088,1746451847775,-1641.740702,0.00019899,2]
[359963089,1746451847784,-450.0,0.00019899,2]
[359963090,1746451847793,-1641.740702,0.00019899,2]
[359963091,1746451847803,-151.0,0.00019899,2]
[359963092,1746451847815,-151.0,0.00019899,2]
[359963093,1746451847825,-450.0,0.00019899,2]
[359963094,1746451847834,-450.0,0.00019899,2]
[359963095,1746451847844,-362.33982077,0.00019899,2]
[359963096,1746451847855,-151.0,0.00019899,2]
[359963097,1746451847864,-151.0,0.00019899,2]
[359963098,1746451847873,-450.0,0.00019899,2]
[359963099,1746451847883,-291.224306,0.00019899,2]
[359963100,1746451847893,-450.0,0.00019899,2]
[359963101,1746451847904,-450.0,0.00019899,2]
[359963102,1746451847913,-450.0,0.00019899,2]
[359963103,1746451847922,-450.0,0.00019899,2]
[359963104,1746451847932,-450.0,0.00019899,2]
[359963105,1746451847942,-151.0,0.00019899,2]
[359963106,1746451847951,-450.0,0.00019899,2]
[359963107,1746451847960,-151.0,0.00019899,2]
[359963108,1746451847969,-151.0,0.00019899,2]
[359963109,1746451847979,-151.0,0.00019899,2]
[359963110,1746451847991,-151.0,0.00019899,2]
[359963111,1746451848001,-596.54,0.00019899,2]
[359963112,1746451848010,-557.47,0.00019899,2]
[359963113,1746451848019,-450.0,0.00019899,2]
[359963114,1746451848029,-450.0,0.00019899,2]
[359963115,1746451848038,-529.23813781,0.00019899,2]
[359963116,1746451848047,-450.0,0.00019899,2]
[359963117,1746451848057,-450.0,0.00019899,2]
[359963118,1746451848066,-450.0,0.00019899,2]
[359963119,1746451848076,-450.0,0.00019899,2]
[359963120,1746451848085,-453.64158599,0.00019899,2]
[359963121,1746451848096,-450.0,0.00019899,2]
[359963122,1746451848106,-2255.94,0.00019899,2]
[359963123,1746451848115,-151.0,0.00019899,2]
[359963124,1746451848125,-151.0,0.00019899,2]
[359963125,1746451848134,-450.0,0.00019899,2]
[359963126,1746451848143,-450.0,0.00019899,2]
[359963127,1746451848152,-450.0,0.00019899,2]
[359963128,1746451848162,-151.0,0.00019899,2]
[359963129,1746451848171,-151.0,0.00019899,2]
[359963130,1746451848180,-450.0,0.00019899,2]
[359963131,1746451848189,-450.0,0.00019899,2]
[359963132,1746451848199,-450.0,0.00019899,2]
[359963133,1746451848208,-151.0,0.00019899,2]
[359963134,1746451848218,-151.0,0.00019899,2]
[359963135,1746451848228,-450.0,0.00019899,2]
[359963136,1746451848237,-579.91,0.00019899,2]
[359963137,1746451848246,-2875.91,0.00019899,2]
[359963138,1746451848256,-450.0,0.00019899,2]
[359963139,1746451848265,-450.0,0.00019899,2]
[359963140,1746451848274,-450.0,0.00019899,2]
[359963141,1746451848284,-2355.35,0.00019899,2]
[359963142,1746451848293,-500.0,0.00019899,2]
[359963143,1746451848302,-450.0,0.00019899,2]
[359963144,1746451848311,-450.0,0.00019899,2]
[359963145,1746451848321,-450.0,0.00019899,2]
[359963146,1746451848330,-452.60256211,0.00019899,2]
[359963147,1746451848339,-450.0,0.00019899,2]
[359963148,1746451848348,-227.574906,0.00019899,2]
[359963149,1746451848357,-258.760831,0.00019899,2]
[359963150,1746451848366,-554.35272544,0.00019899,2]
[359963151,1746451848375,-258.760831,0.00019899,2]
[359963152,1746451848384,-513.91255045,0.00019899,2]
[359963153,1746451848393,-450.0,0.00019899,2]
[359963154,1746451848403,-450.0,0.00019899,2]
[359963155,1746451848412,-515.94296531,0.00019899,2]
[359963156,1746451848422,-450.0,0.00019899,2]
[359963157,1746451848431,-474.71038616,0.00019899,2]
[359963158,1746451848441,-151.0,0.00019899,2]
[359963159,1746451848450,-151.0,0.00019899,2]
[359963160,1746451848459,-151.0,0.00019899,2]
[359963161,1746451848469,-523.74689952,0.00019899,2]
[359963162,1746451848478,-500.0,0.00019899,2]
[359963163,1746451848487,-151.0,0.00019899,2]
[359963164,1746451848497,-450.0,0.00019899,2]
[359963165,1746451848506,-450.0,0.00019899,2]
[359963166,1746451848515,-2269.6,0.00019899,2]
[359963167,1746451848524,-151.0,0.00019899,2]
[359963168,1746451848533,-450.0,0.00019899,2]
[359963169,1746451848542,-151.0,0.00019899,2]
[359963170,1746451848551,-512.4,0.00019899,2]
[359963171,1746451848560,-481.03429624,0.00019899,2]
[359963172,1746451848569,-450.0,0.00019899,2]
[359963173,1746451848578,-61642.07,0.00019899,2]
[359963174,1746451848588,-450.0,0.00019899,2]
[359963175,1746451848597,-450.0,0.00019899,2]
[359963176,1746451848606,-587.72900707,0.00019899,2]
[359963177,1746451848615,-524.67275617,0.00019899,2]
[359963178,1746451848624,-450.0,0.00019899,2]
[359963179,1746451848633,-463.52548413,0.00019899,2]
[359963180,1746451848642,-151.0,0.00019899,2]
[359963181,1746451848651,-481.57526706,0.00019899,2]
[359963182,1746451848660,-300.0,0.00019899,2]
[359963183,1746451848669,-189.444192,0.00019899,2]
[359963184,1746451848678,-151.0,0.00019899,2]
[359963185,1746451848687,-459.64622207,0.00019899,2]
[359963186,1746451848697,-151.0,0.00019899,2]
[359963187,1746451848706,-450.0,0.00019899,2]
[359963188,1746451848716,-545.94271448,0.00019899,2]
[359963189,1746451848725,-450.0,0.00019899,2]
[359963190,1746451848735,-450.0,0.00019899,2]
[359963191,1746451848744,-528.20403667,0.00019899,2]
[359963192,1746451848754,-450.0,0.00019899,2]
[359963193,1746451848763,-450.0,0.00019899,2]
[359963194,1746451848772,-450.0,0.00019899,2]
[359963195,1746451848781,-450.0,0.00019899,2]
[359963196,1746451848791,-965.63,0.00019899,2]
[359963197,1746451848800,-450.0,0.00019899,2]
[359963198,1746451848809,-450.0,0.00019899,2]
[359963199,1746451848823,-450.0,0.00019899,2]
[359963200,1746451848832,-157.870725,0.00019899,2]
[359963201,1746451848842,-450.0,0.00019899,2]
[359963202,1746451848851,-450.0,0.00019899,2]
[359963203,1746451848861,-450.0,0.00019899,2]
[359963204,1746451848870,-465.80186864,0.00019899,2]
[359963205,1746451848879,-4675.71,0.00019899,2]
[359963206,1746451848889,-453.06027563,0.00019899,2]
[359963207,1746451848899,-555.79374362,0.00019899,2]
[359963208,1746451848908,-474.4431861,0.00019899,2]
[359963209,1746451848917,-450.0,0.00019899,2]
[359963210,1746451848926,-450.0,0.00019899,2]
[359963211,1746451848935,-479.37705776,0.00019899,2]
[359963212,1746451848944,-450.0,0.00019899,2]
[359963213,1746451848954,-450.0,0.00019899,2]
[359963214,1746451848963,-464.57904137,0.00019899,2]
[359963215,1746451848972,-450.0,0.00019899,2]
[359963216,1746451848981,-151.0,0.00019899,2]
[359963217,1746451848993,-450.0,0.00019899,2]
[359963218,1746451849005,-151.0,0.00019899,2]
[359963219,1746451849016,-450.0,0.00019899,2]
[359963220,1746451849026,-450.0,0.00019899,2]
[359963221,1746451849035,-2082.41,0.00019899,2]
[359963222,1746451849044,-259.621065,0.00019899,2]
[359963223,1746451849053,-450.0,0.00019899,2]
[359963224,1746451849062,-450.0,0.00019899,2]
[359963225,1746451849071,-450.0,0.00019899,2]
[359963226,1746451849080,-467.4611304,0.00019899,2]
[359963227,1746451849089,-453.76695572,0.00019899,2]
[359963228,1746451849099,-450.0,0.00019899,2]
[359963229,1746451849108,-453.94957557,0.00019899,2]
[359963230,1746451849117,-524.73403359,0.00019899,2]
[359963231,1746451849127,-450.0,0.00019899,2]
[359963232,1746451849136,-469.60296193,0.00019899,2]
[359963233,1746451849145,-450.0,0.00019899,2]
[359963234,1746451849154,-450.0,0.00019899,2]
[359963235,1746451849163,-450.0,0.00019899,2]
[359963236,1746451849173,-515.82031115,0.00019899,2]
[359963237,1746451849182,-450.0,0.00019899,2]
[359963238,1746451849191,-465.58478241,0.00019899,2]
[359963239,1746451849201,-452.85885943,0.00019899,2]
[359963240,1746451849210,-464.57555561,0.00019899,2]
[359963241,1746451849220,-450.0,0.00019899,2]
[359963242,1746451849229,-450.0,0.00019899,2]
[359963243,1746451849238,-450.0,0.00019899,2]
[359963244,1746451849247,-450.0,0.00019899,2]
[359963245,1746451849256,-151.0,0.00019899,2]
[359963246,1746451849265,-450.0,0.00019899,2]
[359963247,1746451849274,-453.63209333,0.00019899,2]
[359963248,1746451849283,-151.0,0.00019899,2]
[359963249,1746451849292,-151.0,0.00019899,2]
[359963250,1746451849301,-450.0,0.00019899,2]
[359963251,1746451849311,-450.0,0.00019899,2]
[359963252,1746451849320,-450.0,0.00019899,2]
[359963253,1746451849329,-461.48757921,0.00019899,2]
[359963254,1746451849338,-450.0,0.00019899,2]
[359963255,1746451849348,-151.0,0.00019899,2]
[359963256,1746451849357,-151.0,0.00019899,2]
[359963257,1746451849366,-207.266823,0.00019899,2]
[359963258,1746451849376,-450.0,0.00019899,2]
[359963259,1746451849386,-450.0,0.00019899,2]
[359963260,1746451849395,-524.67325764,0.00019899,2]
[359963261,1746451849404,-456.37527275,0.00019899,2]
[359963262,1746451849413,-450.0,0.00019899,2]
[359963263,1746451849423,-450.0,0.00019899,2]
[359963264,1746451849432,-151.0,0.00019899,2]
[359963265,1746451849441,-151.0,0.00019899,2]
[359963266,1746451849451,-3893.73,0.00019899,2]
[359963267,1746451849460,-469.5541486,0.00019899,2]
[359963268,1746451849470,-455.91609395,0.00019899,2]
[359963269,1746451849481,-450.0,0.00019899,2]
[359963270,1746451849490,-566.45467809,0.00019899,2]
[359963271,1746451849500,-466.025579,0.00019899,2]
[359963272,1746451849618,-458.29053416,0.00019899,2]
[359963273,1746451849632,-462.41550184,0.00019899,2]
[359963274,1746451849646,-458.30486148,0.00019899,2]
[359963275,1746451849656,-450.0,0.00019899,2]
[359963276,1746451849666,-150.0,0.00019899,2]
[359963277,1746451849675,-457.12551117,0.00019899,2]
[359963278,1746451849686,-450.0,0.00019899,2]
[359963279,1746451849696,-228.63073638,0.00019899,2]
[359963280,1746451849706,-151.0,0.00019899,2]
[359963281,1746451849716,-155.115852,0.00019899,2]
[359963282,1746451849726,-450.0,0.00019899,2]
[359963283,1746451849735,-450.0,0.00019899,2]
[359963284,1746451849745,-212.45676704,0.00019899,2]
[359963285,1746451849754,-500.0,0.00019899,2]
[359963286,1746451849764,-461.82247763,0.00019899,2]
[359963287,1746451849773,-150.0,0.00019899,2]
[359963288,1746451849783,-468.91223706,0.00019899,2]
[359963289,1746451849792,-458.08302021,0.00019899,2]
[359963290,1746451849801,-450.0,0.00019899,2]
[359963291,1746451849811,-332.30600957,0.00019899,2]
[359963292,1746451850096,-117.69399043,0.00019899,2]
[359963293,1746451850105,-161.092898,0.00019899,2]
[359963294,1746451850115,-330.73943522,0.00019899,2]
[359963295,1746451850126,-119.26056478,0.00019899,2]
[359963296,1746451850135,-450.0,0.00019899,2]
[359963297,1746451850144,-8.14374874,0.00019899,2]
[359963298,1746451850187,-577.63,0.00019896,2]
[359963299,1746451850197,-441.85625126,0.00019899,2]
[359963300,1746451850207,-151.0,0.00019899,2]
[359963301,1746451850216,-450.0,0.00019899,2]
[359963302,1746451850225,-151.0,0.00019899,2]
[359963303,1746451850234,-151.0,0.00019899,2]
[359963304,1746451850244,-151.0,0.00019899,2]
[359963305,1746451850253,-151.0,0.00019899,2]
[359963306,1746451850263,-151.0,0.00019899,2]
[359963307,1746451850272,-450.0,0.00019899,2]
[359963308,1746451850282,-151.0,0.00019899,2]
[359963309,1746451850291,-292.624201,0.00019899,2]
[359963310,1746451850301,-450.0,0.00019899,2]
[359963311,1746451850310,-450.0,0.00019899,2]
[359963312,1746451850319,-450.0,0.00019899,2]
[359963313,1746451850329,-459.70486477,0.00019899,2]
[359963314,1746451850338,-450.0,0.00019899,2]
[359963315,1746451850347,-450.0,0.00019899,2]
[359963316,1746451850357,-510.32028494,0.00019899,2]
[359963317,1746451850366,-6161.59500879,0.000199,2]
[359963318,1746451850377,-5606.64577429,0.000199,2]
[359963319,1746451850386,-12500.0,0.000199,2]
[359963320,1746451850395,-1331.1686656,0.000199,2]
[359963321,1746451850404,-47019.32284269,0.000199,2]
[359963322,1746451850415,-3818.9254643,0.000199,2]
[359963323,1746451850426,-499.9970157,0.000199,2]
[359963324,1746451850437,-400.07483383,0.000199,2]
[359963325,1746451850449,-53658.12933204,0.000199,2]
[359963326,1746451850459,-2934.91023671,0.000199,2]
[359963327,1746451850469,-221.570423,0.000199,2]
[359963328,1746451850478,-151.0,0.000199,2]
[359963329,1746451850488,-181.97529,0.000199,2]
[359963330,1746451850497,-151.0,0.000199,2]
[359963331,1746451850506,-193.762318,0.000199,2]
[359963332,1746451850516,-195.52133714,0.000199,2]
[359963333,1746451850525,-731.72113722,0.000199,2]
[359963334,1746451850536,-120.37201545,0.000199,2]
[359963335,1746451850546,-169.50406532,0.000199,2]
[359963336,1746451850556,-151.0,0.000199,2]
[359963337,1746451850566,-289.7,0.00019918,7]
[359963338,1746451850577,-162.84043537,0.00019923,2]
[359963339,1746451850586,-450.0,0.00019923,2]
[359963340,1746451850595,-450.0,0.00019923,2]
[359963341,1746451850605,-299.94742311,0.00019923,2]
[359963342,1746451850614,-450.0,0.00019923,2]
[359963343,1746451850623,-450.0,0.00019923,2]
[359963344,1746451850633,-450.0,0.00019923,2]
[359963345,1746451850642,-229.33486095,0.00019923,2]
[359963346,1746451850906,-154.549928,0.00019898,2]
[359963347,1746451850916,-220.66513905,0.00019923,2]
[359963348,1746451850925,-450.0,0.00019923,2]
[359963349,1746451850935,-557.17,0.00019923,2]
[359963350,1746451850944,-341.9,0.00019923,2]
[359963351,1746451850953,-450.0,0.00019923,2]
[359963352,1746451850962,-404.72,0.00019923,2]
[359963353,1746451850972,-186.108635,0.00019923,2]
[359963354,1746451850981,-961.4,0.00019923,2]
[359963355,1746451850990,-4711.4686263,0.00019923,2]
[359963356,1746451851006,-644.7813737,0.00019923,2]
[359963357,1746451851019,-121.80974735,0.00019923,2]
[359963358,1746451851398,-151.0,0.00019898,2]
[359963359,1746451851407,-151.0,0.00019899,2]
[359963360,1746451851416,-22.2843821,0.00019899,2]
[359963361,1746451851426,-128.7156179,0.00019899,2]
[359963362,1746451851436,-151.0,0.00019899,2]
[359963363,1746451851445,-151.0,0.00019899,2]
[359963364,1746451851456,-31.55112365,0.00019923,2]
[359963365,1746451851466,-214.1377701,0.00019924,2]
[359963366,1746451851475,-4255.68704872,0.00019924,2]
[359963367,1746451851495,-10829.63456963,0.00019924,2]
[359963368,1746451851506,-40874.1297285,0.00019924,2]
[359963369,1746451851517,-878.09392468,0.00019924,2]
[359963370,1746451979531,1800.0,0.0003,30]
[359963371,1746452045142,3006.4,0.00018948,2]
[359963372,1746452046196,946.39,0.00017027,2]
[359963373,1746452046300,946.39,0.00019291,2]
[359963374,1746452291769,1000.0,0.00018934,2]
[359963375,1746452314849,697.87,0.00018934,2]
[359963376,1746452482681,721.94,0.00019081,2]
[359963377,1746452484805,-169.2657763,0.00019798,2]
[359963378,1746452484826,-150.5329356,0.00019799,2]
[359963379,1746452484848,-200.0,0.000198,2]
[359963380,1746452484868,-321.05681072,0.000198,2]
[359963381,1746452484891,-169.26577629,0.0001984,2]
[359963382,1746452484913,-500.0,0.00019873,2]
[359963383,1746452484936,-169.26577629,0.00019881,2]
[359963384,1746452484958,-207.4,0.00019885,2]
[359963385,1746452484980,-963.38,0.00019887,2]
[359963386,1746452485002,-1200.0,0.00019894,2]
[359963387,1746452485028,-300.0,0.00019894,2]
[359963388,1746452485060,-500.0,0.00019895,2]
[359963389,1746452485095,-500.0,0.00019895,2]
[359963390,1746452485127,-500.0,0.00019895,2]
[359963391,1746452485157,-500.0,0.00019895,2]
[359963392,1746452485188,-500.0,0.00019895,2]
[359963393,1746452485218,-500.0,0.00019895,2]
[359963394,1746452485248,-500.0,0.00019895,2]
[359963395,1746452485278,-500.0,0.00019895,2]
[359963396,1746452485308,-500.0,0.00019895,2]
[359963397,1746452485338,-500.0,0.00019895,2]
[359963398,1746452485368,-500.0,0.00019895,2]
[359963399,1746452485398,-500.0,0.00019895,2]
[359963400,1746452485428,-500.0,0.00019895,2]
[359963401,1746452485457,-500.0,0.00019895,2]
[359963402,1746452485489,-500.0,0.00019895,2]
[359963403,1746452485520,-500.0,0.00019895,2]
[359963404,1746452485549,-500.0,0.00019895,2]
[359963405,1746452485579,-500.0,0.00019895,2]
[359963406,1746452485608,-500.0,0.00019895,2]
[359963407,1746452485638,-500.0,0.00019895,2]
[359963408,1746452485668,-500.0,0.00019895,2]
[359963409,1746452485697,-500.0,0.00019895,2]
[359963410,1746452485727,-500.0,0.00019895,2]
[359963411,1746452485757,-500.0,0.00019895,2]
[359963412,1746452485788,-500.0,0.00019895,2]
[359963413,1746452485820,-500.0,0.00019895,2]
[359963414,1746452485852,-500.0,0.00019895,2]
[359963415,1746452485883,-500.0,0.00019895,2]
[359963416,1746452485916,-500.0,0.00019895,2]
[359963417,1746452485948,-500.0,0.00019895,2]
[359963418,1746452485981,-500.0,0.00019895,2]
[359963419,1746452486016,-500.0,0.00019895,2]
[359963420,1746452486049,-500.0,0.00019895,2]
[359963421,1746452486081,-500.0,0.00019895,2]
[359963422,1746452486111,-637.49193906,0.00019895,2]
[359963423,1746452486141,-500.0,0.00019895,2]
[359963424,1746452486172,-500.0,0.00019895,2]
[359963425,1746452486203,-500.0,0.00019895,2]
[359963426,1746452486235,-500.0,0.00019895,2]
[359963427,1746452486265,-500.0,0.00019895,2]
[359963428,1746452486297,-500.0,0.00019895,2]
[359963429,1746452486328,-500.0,0.00019895,2]
[359963430,1746452486361,-500.0,0.00019895,2]
[359963431,1746452486395,-500.0,0.00019895,2]
[359963432,1746452486427,-500.0,0.00019895,2]
[359963433,1746452486459,-500.0,0.00019895,2]
[359963434,1746452486497,-500.0,0.00019895,2]
[359963435,1746452486529,-500.0,0.00019895,2]
[359963436,1746452486561,-500.0,0.00019895,2]
[359963437,1746452486595,-500.0,0.00019895,2]
[359963438,1746452486628,-500.0,0.00019895,2]
[359963439,1746452486660,-500.0,0.00019895,2]
[359963440,1746452486695,-500.0,0.00019895,2]
[359963441,1746452486940,-500.0,0.00019895,2]
[359963442,1746452486974,-500.0,0.00019895,2]
[359963443,1746452487019,-500.0,0.00019895,2]
[359963444,1746452487055,-500.0,0.00019895,2]
[359963445,1746452487089,-600.0,0.00019895,2]
[359963446,1746452487121,-500.0,0.00019895,2]
[359963447,1746452487153,-500.0,0.00019895,2]
[359963448,1746452487187,-500.0,0.00019895,2]
[359963449,1746452487217,-500.0,0.00019895,2]
[359963450,1746452487246,-500.0,0.00019895,2]
[359963451,1746452487276,-500.0,0.00019895,2]
[359963452,1746452487306,-160.0,0.00019895,2]
[359963453,1746452487336,-500.0,0.00019895,2]
[359963454,1746452487356,-450.0,0.00019896,2]
[359963455,1746452487376,-450.0,0.00019896,2]
[359963456,1746452487396,-450.0,0.00019896,2]
[359963457,1746452487416,-450.0,0.00019896,2]
[359963458,1746452487436,-450.0,0.00019896,2]
[359963459,1746452487456,-450.0,0.00019896,2]
[359963460,1746452487476,-551.25285806,0.00019896,2]
[359963461,1746452487497,-450.0,0.00019896,2]
[359963462,1746452487517,-450.0,0.00019896,2]
[359963463,1746452487538,-450.0,0.00019896,2]
[359963464,1746452487558,-450.0,0.00019896,2]
[359963465,1746452487578,-450.0,0.00019896,2]
[359963466,1746452487599,-493.64893551,0.00019896,2]
[359963467,1746452487619,-467.56259824,0.00019896,2]
[359963468,1746452487640,-450.0,0.00019896,2]
[359963469,1746452487659,-450.0,0.00019896,2]
[359963470,1746452487679,-450.0,0.00019896,2]
[359963471,1746452487699,-450.0,0.00019896,2]
[359963472,1746452487720,-562.8,0.00019896,2]
[359963473,1746452487742,-470.73379603,0.00019896,2]
[359963474,1746452487762,-476.10273461,0.00019896,2]
[359963475,1746452487792,-505.2,0.00019896,2]
[359963476,1746452487812,-450.0,0.00019896,2]
[359963477,1746452487833,-450.0,0.00019896,2]
[359963478,1746452487854,-450.0,0.00019896,2]
[359963479,1746452487876,-450.0,0.00019896,2]
[359963480,1746452487896,-450.0,0.00019896,2]
[359963481,1746452487917,-450.0,0.00019896,2]
[359963482,1746452487938,-480.87568506,0.00019896,2]
[359963483,1746452487959,-196.04,0.00019896,2]
[359963484,1746452487981,-450.0,0.00019896,2]
[359963485,1746452488002,-450.0,0.00019896,2]
[359963486,1746452488026,-450.0,0.00019896,2]
[359963487,1746452488047,-450.0,0.00019896,2]
[359963488,1746452488068,-450.0,0.00019896,2]
[359963489,1746452488090,-450.0,0.00019896,2]
[359963490,1746452488111,-450.0,0.00019896,2]
[359963491,1746452488132,-211.10237496,0.00019896,2]
[359963492,1746452488154,-572.53,0.00019896,2]
[359963493,1746452488175,-450.0,0.00019896,2]
[359963494,1746452488197,-450.0,0.00019896,2]
[359963495,1746452488220,-450.0,0.00019896,2]
[359963496,1746452488256,-450.0,0.00019896,2]
[359963497,1746452488285,-450.0,0.00019896,2]
[359963498,1746452488315,-450.0,0.00019896,2]
[359963499,1746452488344,-375.8,0.00019896,2]
[359963500,1746452488370,-450.0,0.00019896,2]
[359963501,1746452488400,-450.0,0.00019896,2]
[359963502,1746452488430,-450.0,0.00019896,2]
[359963503,1746452488460,-450.0,0.00019896,2]
[359963504,1746452488492,-450.0,0.00019896,2]
[359963505,1746452488521,-206.28221279,0.00019896,2]
[359963506,1746452488550,-450.0,0.00019896,2]
[359963507,1746452488580,-450.0,0.00019896,2]
[359963508,1746452488606,-450.0,0.00019896,2]
[359963509,1746452488631,-461.53117526,0.00019896,2]
[359963510,1746452488660,-450.0,0.00019896,2]
[359963511,1746452488683,-450.0,0.00019896,2]
[359963512,1746452488712,-450.0,0.00019896,2]
[359963513,1746452488738,-500.0,0.00019896,2]
[359963514,1746452488764,-450.0,0.00019896,2]
[359963515,1746452488790,-450.0,0.00019896,2]
[359963516,1746452488820,-450.0,0.00019896,2]
[359963517,1746452488848,-3569.25,0.00019896,2]
[359963518,1746452488876,-478.25309294,0.00019896,2]
[359963519,1746452488904,-695.56,0.00019896,2]
[359963520,1746452488931,-450.0,0.00019896,2]
[359963521,1746452488959,-450.0,0.00019896,2]
[359963522,1746452488987,-446.42,0.00019896,2]
[359963523,1746452489016,-450.0,0.00019896,2]
[359963524,1746452489045,-450.0,0.00019896,2]
[359963525,1746452489073,-450.0,0.00019896,2]
[359963526,1746452489102,-450.0,0.00019896,2]
[359963527,1746452489129,-450.0,0.00019896,2]
[359963528,1746452489157,-1401.54,0.00019896,2]
[359963529,1746452489184,-450.0,0.00019896,2]
[359963530,1746452489213,-450.0,0.00019896,2]
[359963531,1746452489241,-450.0,0.00019896,2]
[359963532,1746452489269,-450.0,0.00019896,2]
[359963533,1746452489295,-455.68575044,0.00019896,2]
[359963534,1746452489321,-450.0,0.00019896,2]
[359963535,1746452489347,-450.0,0.00019896,2]
[359963536,1746452489375,-450.0,0.00019896,2]
[359963537,1746452489400,-510.0,0.00019896,2]
[359963538,1746452489425,-450.0,0.00019896,2]
[359963539,1746452489452,-841.22,0.00019896,2]
[359963540,1746452489479,-1046.26,0.00019896,2]
[359963541,1746452489506,-450.0,0.00019896,2]
[359963542,1746452489532,-450.0,0.00019896,2]
[359963543,1746452489557,-19219.76,0.00019896,2]
[359963544,1746452489584,-450.0,0.00019896,2]
[359963545,1746452489611,-450.0,0.00019896,2]
[359963546,1746452489637,-450.0,0.00019896,2]
[359963547,1746452489664,-486.75600233,0.00019896,2]
[359963548,1746452489686,-450.0,0.00019896,2]
[359963549,1746452489707,-450.0,0.00019896,2]
[359963550,1746452489950,-569.34771324,0.00019896,2]
[359963551,1746452489973,-450.0,0.00019896,2]
[359963552,1746452489998,-450.0,0.00019896,2]
[359963553,1746452490024,-450.43049376,0.00019896,2]
[359963554,1746452490046,-450.0,0.00019896,2]
[359963555,1746452490069,-450.0,0.00019896,2]
[359963556,1746452490092,-450.0,0.00019896,2]
[359963557,1746452490115,-5356.250001,0.00019896,2]
[359963558,1746452490138,-452.58,0.00019896,2]
[359963559,1746452490160,-450.0,0.00019896,2]
[359963560,1746452490182,-450.0,0.00019896,2]
[359963561,1746452490203,-450.0,0.00019896,2]
[359963562,1746452490226,-534.24,0.00019896,2]
[359963563,1746452490249,-450.0,0.00019896,2]
[359963564,1746452490271,-555.75,0.00019896,2]
[359963565,1746452490293,-500.0,0.00019896,2]
[359963566,1746452490315,-450.0,0.00019896,2]
[359963567,1746452490337,-519.74279589,0.00019896,2]
[359963568,1746452490358,-292.66153218,0.00019896,2]
[359963569,1746452490378,-407.25791908,0.00019896,2]
[359963570,1746452490400,-450.0,0.00019896,2]
[359963571,1746452490425,-2161.95,0.00019896,2]
[359963572,1746452490448,-450.0,0.00019896,2]
[359963573,1746452490469,-507.56,0.00019896,2]
[359963574,1746452490493,-346.99,0.00019896,2]
[359963575,1746452490515,-450.0,0.00019896,2]
[359963576,1746452490537,-450.0,0.00019896,2]
[359963577,1746452490558,-500.0,0.00019896,2]
[359963578,1746452490580,-2756.08,0.00019896,2]
[359963579,1746452490601,-450.0,0.00019896,2]
[359963580,1746452490637,-491.05,0.00019896,2]
[359963581,1746452490659,-2257.21,0.00019896,2]
[359963582,1746452490681,-450.0,0.00019896,2]